Workbook

Sheet Worksheet
B1: *Utah Manure Application Risk Index Worksheet
A3: Landowner: | C3: Milk Shake Dairy | M3: Weather Station: | Q3: Cedar City Airport | X3: Low Risk | AA3: 1 | AB3: centimeters = | AC3: =AA3*0.393701 -> 0.393701 | AD3: inches
A4: Planner: | C4: Way Green | M4: Location: | Q4: Logan, Utah | X4: Moderate risk
F5: Winter Precipitation: | K5: =IF(Q3="","",VLOOKUP(Q3,'Winter Precipitation Values'!A5:H43,8,TRUE)) -> 4.4 | M5: Date: | Q5: =TODAY() -> 2015-02-25 | X5: High risk
B6: Saturated/Snow Covered/ Frozen Ground Application Parameters
B7: Tract: | C7: Field: | D7: Soil Symbol: | E7: AWC (5ft): | F7: Adjusted AWC rating | G7: Winter Precip. Score | H7: % Slope | I7: Soil Test Phos | J7: Hydrologic Group | K7: Restrict. Lay. | L7: Irr. Type | M7: Cover Type | N7: Incorporation | O7: Containment | P7: RUSLE2 Erosion | Q7: WEPS Erosion | R7: Distance | S7: Application Rate | T7: Total Points: | U7: *Risk Level: | V7: Practices to be implemented
A8: Before | F8: =IF(C8=" "," ",IF((E8*0.75)<2.5,12,IF((E8*0.75)>7.5,1,6))) ->  | G8: =IF(C8=" "," ",IF($K$5<E8,1,IF($K$5=E8,1,IF($K$5<=E8+2,6,IF($K$5<=E8+3,9,IF($K$5>E8+3,12)))))) ->  | I8: 12 | L8: 12 | M8: 12 | N8: 12 | O8: 12 | P8: 1 | Q8: 12 | R8: 12 | S8: 12 | T8: =SUM(F8:S8) -> 97 | U8: =IF(B8=" "," ",IF(T8>103,"High",IF(T8<63,"Low","Moderate"))) ->  | Z8: Practices to be implemented: | AF8: Altamont
A9: After | B9: =IF(B8=" "," ",B8) ->  | C9: =C8 ->  | D9: =IF(D8=" "," ",D8) ->  | F9: =IF(C9=" "," ",IF((E9*0.75)<2.5,12,IF((E9*0.75)>7.5,1,6))) ->  | G9: =IF(C9=" "," ",IF($K$5<E9,1,IF($K$5=E9,1,IF($K$5<=E9+2,6,IF($K$5<=E9+3,9,IF($K$5>E9+3,12)))))) ->  | H9: =IF(H8=" "," ",H8) ->  | J9: =IF(J8=" "," ",J8) ->  | K9: =IF(K8=" "," ",K8) ->  | T9: =SUM(F9:S9) -> 0 | AF9: Bear River Bay Refuge
A10: Before | T10: 0 | Z10: CT | AA10: Cover Type | AF10: Beaver
A11: After | B11: =IF(B10=" "," ",B10) ->  | C11: =C10 ->  | D11: =IF(D10=" "," ",D10) ->  | H11: =IF(H10=" "," ",H10) ->  | J11: =IF(J10=" "," ",J10) ->  | K11: =IF(K10=" "," ",K10) ->  | T11: 0 | Z11: FS | AA11: Filter Strip | AF11: Brigham City
A12: Before | T12: 0 | Z12: IN | AA12: Incorporation | AF12: Castle Dale
A13: After | B13: =IF(B12=" "," ",B12) ->  | C13: =C12 ->  | D13: =IF(D12=" "," ",D12) ->  | H13: =IF(H12=" "," ",H12) ->  | J13: =IF(J12=" "," ",J12) ->  | K13: =IF(K12=" "," ",K12) ->  | T13: 0 | Z13: IS | AA13: Irrigation System Improvement | AF13: Cedar City Airport
A14: Before | T14: 0 | Z14: IWM | AA14: Irrigation Water Management | AF14: Circleville
A15: After | B15: =IF(B14=" "," ",B14) ->  | C15: =C14 ->  | D15: =IF(D14=" "," ",D14) ->  | H15: =IF(H14=" "," ",H14) ->  | J15: =IF(J14=" "," ",J14) ->  | K15: =IF(K14=" "," ",K14) ->  | T15: 0 | Z15: RB | AA15: Riparian Buffer | AF15: Coalville
A16: Before | T16: 0 | Z16: RC | AA16: Runoff Containment | AF16: Corinne
A17: After | B17: =IF(B16=" "," ",B16) ->  | C17: =C16 ->  | D17: =IF(D16=" "," ",D16) ->  | H17: =IF(H16=" "," ",H16) ->  | J17: =IF(J16=" "," ",J16) ->  | K17: =IF(K16=" "," ",K16) ->  | T17: 0 | Z17: RL | AA17: Restrictive Layer | AF17: Cutler Dam
A18: Before | T18: 0 | Z18: SB | AA18: Setback | AF18: Delta
A19: After | B19: =IF(B18=" "," ",B18) ->  | C19: =C18 ->  | D19: =IF(D18=" "," ",D18) ->  | H19: =IF(H18=" "," ",H18) ->  | J19: =IF(J18=" "," ",J18) ->  | K19: =IF(K18=" "," ",K18) ->  | T19: 0 | Z19: SM | AA19: Soil Moisture Management | AF19: Duchesne
A20: Before | T20: 0 | Z20: TR | AA20: Tailwater Recovery System | AF20: Elberta
A21: After | B21: =IF(B20=" "," ",B20) ->  | C21: =C20 ->  | D21: =IF(D20=" "," ",D20) ->  | H21: =IF(H20=" "," ",H20) ->  | J21: =IF(J20=" "," ",J20) ->  | K21: =IF(K20=" "," ",K20) ->  | T21: 0 | Z21: WS | AA21: Wetland System | AF21: Ft. Duchesne
A22: Before | T22: 0 | AF22: Fairview
A23: After | B23: =IF(B22=" "," ",B22) ->  | C23: =C22 ->  | D23: =IF(D22=" "," ",D22) ->  | H23: =IF(H22=" "," ",H22) ->  | J23: =IF(J22=" "," ",J22) ->  | K23: =IF(K22=" "," ",K22) ->  | T23: 0 | AF23: Grantsville
A24: Before | T24: 0 | Z24: 23.5 | AF24: Heber
A25: After | B25: =IF(B24=" "," ",B24) ->  | C25: =C24 ->  | D25: =IF(D24=" "," ",D24) ->  | H25: =IF(H24=" "," ",H24) ->  | J25: =IF(J24=" "," ",J24) ->  | K25: =IF(K24=" "," ",K24) ->  | T25: 0 | Z25: 144 | AF25: Huntsville
A26: Before | T26: 0 | Z26: =Z25-Z24 -> 120.5 | AF26: Jensen
A27: After | B27: =IF(B26=" "," ",B26) ->  | C27: =C26 ->  | D27: =IF(D26=" "," ",D26) ->  | H27: =IF(H26=" "," ",H26) ->  | J27: =IF(J26=" "," ",J26) ->  | K27: =IF(K26=" "," ",K26) ->  | T27: 0 | Z27: =Z26/3 -> 40.16666667 | AF27: Kamas 3 NW
A28: Before | T28: 0 | Z28: =Z27+Z24 -> 63.66666667 | AF28: Kanosh
A29: After | B29: =IF(B28=" "," ",B28) ->  | C29: =C28 ->  | D29: =IF(D28=" "," ",D28) ->  | H29: =IF(H28=" "," ",H28) ->  | J29: =IF(J28=" "," ",J28) ->  | K29: =IF(K28=" "," ",K28) ->  | T29: 0 | AF29: Lapoint
A30: Before | T30: 0 | AF30: Logan 5 SW Exp. Farm
A31: After | B31: =IF(B30=" "," ",B30) ->  | C31: =C30 ->  | D31: =IF(D30=" "," ",D30) ->  | H31: =IF(H30=" "," ",H30) ->  | J31: =IF(J30=" "," ",J30) ->  | K31: =IF(K30=" "," ",K30) ->  | T31: 0 | AF31: Logan Experiment Sta.
A32: Before | T32: 0 | AF32: Logan Radio
A33: After | B33: =IF(B32=" "," ",B32) ->  | C33: =C32 ->  | D33: =IF(D32=" "," ",D32) ->  | H33: =IF(H32=" "," ",H32) ->  | J33: =IF(J32=" "," ",J32) ->  | K33: =IF(K32=" "," ",K32) ->  | T33: 0 | AF33: Logan USU
A34: Before | T34: 0 | AF34: Milford
A35: After | B35: =IF(B34=" "," ",B34) ->  | C35: =C34 ->  | D35: =IF(D34=" "," ",D34) ->  | H35: =IF(H34=" "," ",H34) ->  | J35: =IF(J34=" "," ",J34) ->  | K35: =IF(K34=" "," ",K34) ->  | T35: 0 | AF35: Minersville
A36: Before | T36: 0 | AF36: Morgan
A37: After | B37: =IF(B36=" "," ",B36) ->  | C37: =C36 ->  | D37: =IF(D36=" "," ",D36) ->  | H37: =IF(H36=" "," ",H36) ->  | J37: =IF(J36=" "," ",J36) ->  | K37: =IF(K36=" "," ",K36) ->  | T37: 0 | AF37: Moroni
A38: Before | T38: 0 | AF38: Ogden Sugar Factory
A39: After | B39: =IF(B38=" "," ",B38) ->  | C39: =C38 ->  | D39: =IF(D38=" "," ",D38) ->  | H39: =IF(H38=" "," ",H38) ->  | J39: =IF(J38=" "," ",J38) ->  | K39: =IF(K38=" "," ",K38) ->  | T39: 0 | AF39: Randolph
A40: Before | T40: 0 | AF40: Richfield Radio
A41: After | B41: =IF(B40=" "," ",B40) ->  | C41: =C40 ->  | D41: =IF(D40=" "," ",D40) ->  | H41: =IF(H40=" "," ",H40) ->  | J41: =IF(J40=" "," ",J40) ->  | K41: =IF(K40=" "," ",K40) ->  | T41: 0 | AF41: Richmond
A42: Before | T42: 0 | AF42: Riverdale
A43: After | B43: =IF(B42=" "," ",B42) ->  | C43: =C42 ->  | D43: =IF(D42=" "," ",D42) ->  | H43: =IF(H42=" "," ",H42) ->  | J43: =IF(J42=" "," ",J42) ->  | K43: =IF(K42=" "," ",K42) ->  | T43: 0 | AF43: Riverton
A44: Before | T44: 0 | AF44: Spanish Fork 1 S
A45: After | B45: =IF(B44=" "," ",B44) ->  | C45: =C44 ->  | D45: =IF(D44=" "," ",D44) ->  | H45: =IF(H44=" "," ",H44) ->  | J45: =IF(J44=" "," ",J44) ->  | K45: =IF(K44=" "," ",K44) ->  | T45: 0 | AF45: Tremonton
A46: Before | T46: 0 | AF46: Trenton/Lewiston
A47: After | B47: =IF(B46=" "," ",B46) ->  | C47: =C46 ->  | D47: =IF(D46=" "," ",D46) ->  | F47: =IF(C47=" "," ",IF((E47*0.75)<2.5,12,IF((E47*0.75)>7.5,1,6))) ->  | G47: =IF(C47=" "," ",IF($K$5<E47,1,IF($K$5=E47,1,IF($K$5<=E47+2,6,IF($K$5<=E47+3,9,IF($K$5>E47+3,12)))))) ->  | H47: =IF(H46=" "," ",H46) ->  | J47: =IF(J46=" "," ",J46) ->  | K47: =IF(K46=" "," ",K46) ->  | T47: 0 | AF47: Spanish Fork 1 S
A48: Before | T48: 0 | AF48: Tremonton
A49: After | B49: =IF(B48=" "," ",B48) ->  | C49: =C48 ->  | D49: =IF(D48=" "," ",D48) ->  | H49: =IF(H48=" "," ",H48) ->  | J49: =IF(J48=" "," ",J48) ->  | K49: =IF(K48=" "," ",K48) ->  | T49: 0
A50: Before | T50: 0
A51: After | B51: =IF(B50=" "," ",B50) ->  | C51: =C50 ->  | D51: =IF(D50=" "," ",D50) ->  | H51: =IF(H50=" "," ",H50) ->  | J51: =IF(J50=" "," ",J50) ->  | K51: =IF(K50=" "," ",K50) ->  | T51: 0

Sheet Winter Precipitation Values
A1: Table 3
A2: Winter Precipitation Values (from Utah Climate Handbook)
A4: Station | B4: Jan | C4: Feb | D4: *Mar | E4: *Oct | F4: Nov | G4: Dec | H4: Total
A5: Altamont | B5: 0.7 | C5: 0.69 | D5: =0.78/2 -> 0.39 | E5: =0.94/2 -> 0.47 | F5: 0.59 | G5: 0.82 | H5: =ROUND(SUM(B5:G5),1) -> 3.7
A6: Bear River Bay Refuge | B6: 1.15 | C6: 0.92 | D6: =1.09/2 -> 0.545 | E6: =1.23/2 -> 0.615 | F6: 1.08 | G6: 1.08 | H6: =ROUND(SUM(B6:G6),1) -> 5.4
A7: Beaver | B7: 0.81 | C7: 0.87 | D7: =1.01/2 -> 0.505 | E7: =0.82/2 -> 0.41 | F7: 0.87 | G7: 0.85 | H7: 4.3
A8: Brigham City | B8: 2.23 | C8: 1.54 | D8: =1.95/2 -> 0.975 | E8: =1.54/2 -> 0.77 | F8: 2.12 | G8: 2.1 | H8: 9.7
A9: Castle Dale | B9: 0.56 | C9: 0.48 | D9: =0.56/2 -> 0.28 | E9: =0.74/2 -> 0.37 | F9: 0.48 | G9: 0.52 | H9: 2.7
A10: Cedar City Airport | B10: 0.69 | C10: 0.89 | D10: =1.36/2 -> 0.68 | E10: =0.95/2 -> 0.475 | F10: 1 | G10: 0.7 | H10: 4.4
A11: Circleville | B11: 0.5 | C11: 0.46 | D11: =0.72/2 -> 0.36 | E11: =0.69/2 -> 0.345 | F11: 0.58 | G11: 0.59 | H11: 2.8
A12: Coalville | B12: 1.08 | C12: 1.12 | D12: =1.54/2 -> 0.77 | E12: =1.51/2 -> 0.755 | F12: 1.59 | G12: 1.27 | H12: 6.6
A13: Corinne | B13: 1.42 | C13: 1.56 | D13: =1.59/2 -> 0.795 | E13: =1.64/2 -> 0.82 | F13: 1.59 | G13: 1.55 | H13: 7.7
A14: Cutler Dam | B14: 1.08 | C14: 1.46 | D14: =1.87/2 -> 0.935 | E14: =1.85/2 -> 0.925 | F14: 1.96 | G14: 1.37 | H14: 7.7
A15: Delta | B15: 0.49 | C15: 0.56 | D15: =0.85/2 -> 0.425 | E15: =0.81/2 -> 0.405 | F15: 0.7 | G15: 0.62 | H15: 3.2
A16: Duchesne | B16: 0.43 | C16: 0.5 | D16: =0.64/2 -> 0.32 | E16: =0.94/2 -> 0.47 | F16: 0.52 | G16: 0.73 | H16: 3
A17: Elberta | B17: 0.81 | C17: 0.86 | D17: =1.01/2 -> 0.505 | E17: =1.07/2 -> 0.535 | F17: 0.92 | G17: 0.86 | H17: 4.5
A18: Ft. Duchesne | B18: 0.33 | C18: 0.34 | D18: =0.47/2 -> 0.235 | E18: =0.88/2 -> 0.44 | F18: 0.37 | G18: 0.47 | H18: 2.2
A19: Fairview | B19: 0.82 | C19: 1.14 | D19: =1.58/2 -> 0.79 | E19: =1.06/2 -> 0.53 | F19: 1.24 | G19: 0.92 | H19: 5.4
A20: Grantsville | B20: 0.62 | C20: 0.8 | D20: =1.29/2 -> 0.645 | E20: =1.11/2 -> 0.555 | F20: 0.97 | G20: 0.89 | H20: 4.5
A21: Heber | B21: 1.78 | C21: 1.56 | D21: =1.37/2 -> 0.685 | E21: =1.45/2 -> 0.725 | F21: 1.64 | G21: 1.62 | H21: 8
A22: Huntsville | B22: 1.92 | C22: 2.08 | D22: =2.2/2 -> 1.1 | E22: =1.87/2 -> 0.935 | F22: 2.47 | G22: 1.92 | H22: 10.4
A23: Jensen | B23: 0.46 | C23: 0.52 | D23: =0.61/2 -> 0.305 | E23: =1.02/2 -> 0.51 | F23: 0.59 | G23: 0.63 | H23: 3
A24: Kamas 3 NW | B24: 1.45 | C24: 1.74 | D24: =1.61/2 -> 0.805 | E24: =1.69/2 -> 0.845 | F24: 1.61 | G24: 1.53 | H24: 8
A25: Kanosh | B25: 1.12 | C25: 1.17 | D25: =1.94/2 -> 0.97 | E25: =1.29/2 -> 0.645 | F25: 1.36 | G25: 1.36 | H25: 6.6
A26: Lapoint | B26: 0.66 | C26: 0.41 | D26: =0.58/2 -> 0.29 | E26: =1.04/2 -> 0.52 | F26: 0.68 | G26: 0.66 | H26: 3.2
A27: Logan 5 SW Exp. Farm | B27: 1.43 | C27: 1.59 | D27: =1.77/2 -> 0.885 | E27: =1.9/2 -> 0.95 | F27: 1.75 | G27: 1.51 | H27: 8.1
A28: Logan Experiment Sta. | B28: 1.58 | C28: 1.28 | D28: 0.82 | E28: 0.72 | F28: 1.45 | G28: 1.54 | H28: 7.4
A29: Logan Radio | B29: 1.02 | C29: 1.27 | D29: =1.61/2 -> 0.805 | E29: =1.64/2 -> 0.82 | F29: 1.46 | G29: 1.29 | H29: 6.7
A30: Logan USU | B30: 1.4 | C30: 1.65 | D30: 1.01 | E30: 0.94 | F30: 1.73 | G30: 1.72 | H30: 8.5
A31: Milford | B31: 0.67 | C31: 0.67 | D31: =1.04/2 -> 0.52 | E31: =0.79/2 -> 0.395 | F31: 0.73 | G31: 0.72 | H31: 3.7
A32: Minersville | B32: 0.78 | C32: 0.84 | D32: =1.48/2 -> 0.74 | E32: =0.99/2 -> 0.495 | F32: 0.88 | G32: 0.89 | H32: 4.6
A33: Morgan | B33: 1.84 | C33: 1.88 | D33: =1.85/2 -> 0.925 | E33: =1.69/2 -> 0.845 | F33: 1.98 | G33: 1.97 | H33: 9.4
A34: Moroni | B34: 0.85 | C34: 0.82 | D34: =0.95/2 -> 0.475 | E34: =0.91/2 -> 0.455 | F34: 0.86 | G34: 0.93 | H34: 4.4
A35: Ogden Sugar Factory | B35: 1.31 | C35: 1.29 | D35: =1.65/2 -> 0.825 | E35: =1.55/2 -> 0.775 | F35: 1.59 | G35: 1.35 | H35: 7.1
A36: Randolph | B36: 0.28 | C36: 0.57 | D36: =0.65/2 -> 0.325 | E36: =0.9/2 -> 0.45 | F36: 1.05 | G36: 0.48 | H36: 3.2
A37: Richfield Radio | B37: 0.56 | C37: 0.58 | D37: =0.73/2 -> 0.365 | E37: =0.84/2 -> 0.42 | F37: 0.67 | G37: 0.59 | H37: 3.2
A38: Richmond | B38: 1.46 | C38: 1.53 | D38: =1.97/2 -> 0.985 | E38: =1.84/2 -> 0.92 | F38: 1.72 | G38: 1.68 | H38: 8.3
A39: Riverdale | B39: 1.51 | C39: 1.57 | D39: =2.16/2 -> 1.08 | E39: =1.86/2 -> 0.93 | F39: 1.69 | G39: 1.62 | H39: 8.4
A40: Riverton | B40: 0.81 | C40: 0.94 | D40: =1.38/2 -> 0.69 | E40: =0.77/2 -> 0.385 | F40: 0.76 | G40: 1.47 | H40: 5.1
A41: Spanish Fork 1 S | B41: 1.7 | C41: 1.35 | D41: =1.3/2 -> 0.65 | E41: =0.78/2 -> 0.39 | F41: 1.22 | G41: 1.42 | H41: 6.7
A42: Tremonton | B42: 1.06 | C42: 1.19 | D42: =1.84/2 -> 0.92 | E42: =1.81/2 -> 0.905 | F42: 1.54 | G42: 1.31 | H42: 6.9
A43: Trenton/Lewiston | B43: 1.38 | C43: 1.5 | D43: =1.66/2 -> 0.83 | E43: =1.67/2 -> 0.835 | F43: 1.61 | G43: 1.45 | H43: 7.6
A45: * 1/2 avg. monthly precip.

Sheet Scoring
A1: Scoreing | N1: 23.5 | O1: Lowest Possible score
N2: 144 | O2: highest ossible score
A3: I arbitrarily assigned points to each category from 2 for a low to 12 for high, with each category having equal weight. That gave me the following ranges. | N3: 120.5 | O3: spread between low and high
N4: 40.16666667 | O4: one third of points
A5: Scoring | N5: 63.66666667 | O5: one third of points plus Lowest Possible score
A7: 24 | B7: Lowest possible score
A8: 144 | B8: highest possible score
A9: 122 | B9: spread between low and high
A10: 40 | B10: one third of points
A11: 64 | B11: one third of points plus Lowest possible score
A13: The single factor that should be able to change many fields to a low risk category is “containment”. I am comfortable with winter application on most fields if there is a containment dike that will contain the water of a 10 year storm for 24 hours with no percolation. That would look like pooling six inches of water on a solid frozen sheet. The dike needs an overflow so it doesn’t get washed out in spectacular events, and allowing only six inches of water (the water holding capacity of many good agricultural fields ranges from 3 to 10) would insure that in the summer the pooled water would not kill a standing crop. Most crops can handle 12 hours of inundation during the growing season. They can go longer when they are dormant.
A15: Because containment is so important we could re-evaluate it to actually have considerable negative points. I would like the ideal dairy or wet system to have one “contained” field with low soil test phosphorus to be the emergency location where liquids go when problems arise.
A17: The short dike would not be a problem on sprinkler irrigated fields. On furrow or border irrigated systems the dike would interfere with conventional irrigation because it would not allow runoff. NRCS can assist in designing “Blocked End” systems on fields with a small slope, where the application of water is engineered so carefully that, while the water ponds on the bottom of the field, it soaks in as part of the normal irrigation.
A19: Containment on fields will cause push-back but it is something that makes winter application environmentally safe.

Sheet Pictures
A25: Back
A53: Back
A95: Back
A118: Back
A141: Back
A163: Back
A189: Back
A206: 6
A214: Back
A241: Back
A266: Back
A293: Back

Sheet Interpertations
A1: Table 4 - Field Vulnerability for Manure Loss
A4: Manure
A5: Application
A6: Risk Index | C6: General Interpretation of Utah Manure Application Risk Index
A9: < 63 | C9: LOW potential for manure movement from the field. The chance of organic
C10: material and nutrients’ getting into surface or groundwater is very small.
C11: Buffers, setbacks, improved irrigation and manure application practices,
C12: runoff containment/control alone or in combination will reduce impact.
C13: These fields have good potential for year round spreading provided
C14: best management practices are in place.
A16: 64-103 | C16: MEDIUM potential for manure movement from the field. The chance
C17: of organic material and nutrients getting to surface or ground water is very
C18: likely. A combination of buffers, setbacks, improved irrigation practices,
C19: and/or application practices, will lower the impact. These fields have very
C20: limited or no potential for winter spreading.
A22: >103 | C22: HIGH potential for manure movement from the field and an adverse
C23: impact on surface and ground water. Manure should not be applied
C24: unless best management practices are in place. Manure should not
C25: be spread during the winter.
A27: ##### | C27: Phosphorus is too high do not apply manure until soil test shows P< 150

Sheet Parameters Setbacks
A1: Table 1
A2: Winter Application Parameters*
A4: Field Features | B4: Very Low Risk | C4: Low Risk | D4: Medium Risk | E4: High Risk**
A5: Points: | B5: 1.5 | C5: 3 | D5: 6 | E5: 9
A6: Distance to water | B6: > 1000 feet from | C6: 500-1000 feet | D6: Appropriate | E6: Downstream edge
B7: water or ditch | C7: from water or | D7: setback applied1 | E7: of field adjacent
C8: ditch | D8: (< 500 ft) | E8: to water or ditch
A9: Irrigation Type/ | B9: Sprinkler, level | C9: Graded border, | D9: Flood irrigation | E9: Uncontrolled
A10: Field Surface | B10: border, smooth | C10: Flood irrigation | D10: with furrows, | E10: flood, unlevel,
B11: level field | C11: w/out furrows | D11: rolling surface | E11: hummocky
A12: Cover Type | B12: Good stands of | C12: Grain stubble, | D12: Corn stubble, or | E12: Smooth, bare
B13: alfalfa, grass, or | C13: plowed, or rough | D13: poor stands of | E13: ground
B14: a cover crop | C14: bare ground | D14: perennial crops
A15: Runoff Containment | B15: Fully contained | C15: Flows into | D15: Flows into | E15: Flows directly
B16: for a 10 year | C16: adjacently | D16: internal field | E16: to water or off
B17: 24 hour storm | C17: owned field | D17: distribution ditch | E17: owned property
A18: Soil Limitations2 | B18: > 5 ft | C18: 4-5 ft | D18: 2-4 ft | E18: <=2 ft
A19: Hydrologic Group3 | B19: A | C19: B | D19: C | E19: D
A20: % Slope | B20: < 2% | C20: 2-3% | D20: 4-5% | E20: > 5%
A21: Points: | B21: 0.5 | C21: 1 | D21: 2 | E21: 3
A22: Adjusted AWC4 | B22: > 10" | C22: 7.5-10" | D22: 2.5-7.5" | E22: < 2.5"
A23: Winter Precipitation | B23: < Adjusted AWC | C23: 0 to 2" over | D23: 2 to 3" over | E23: > 3" over
A24: (Oct. to Mar.) | C24: Adjusted AWC | D24: Adjusted AWC | E24: Adjusted AWC
A25: * Applicable only to irrigated lands.
A26: **Individual high-risk features should be evaluated and conservation practices applied where possible.
A28: 1. Manure is applied according to an appropriate setback as shown in the following table. Where
A29: vegetative buffers such as filter strips or riparian buffers are applied, setback distances may be
A30: lowered as shown in the table. Setback distances shown are from the edge of the field when
A31: buffers are not used or from the edge of the buffer.
B33: Setback Distance w/out Buffers | D33: Setback Distance with Buffers
A34: %Slope | B34: Without Furrows | C34: With Furrows | D34: Without Furrows | E34: With Furrows
A35: 0-1 | B35: 50 | C35: 100 | D35: 0 | E35: 10
A36: 1-2 | B36: 150 | C36: 200 | D36: 10 | E36: 20
A37: 2-3 | B37: 250 | C37: 300 | D37: 20 | E37: 30
A38: 3-4 | B38: 350 | C38: 400 | D38: 30 | E38: 40
A39: 4-5 | B39: 450 | C39: 500 | D39: 40 | E39: 50
A41: 2. Restrictive layers include water table, bedrock, and gravelly or sandy layers in the rooting depth.
A42: 3. Use the soil map unit that is nearest to the water source, that is most restrictive, or that is the
A43: dominant soil where more than one soil map unit exists in the field.
A44: 4. Multiply the available water holding capacity for a 5-ft depth or for the depth of the soil
A45: limitation by 75%.

Sheet Sheet1
